fUST/lending_fUST_20250810
["ID","MTS","AMOUNT","RATE_DAILY","PERIOD"]
[378341759,1754833753415,-460.0,0.00020815,2]
[378341760,1754833753441,-831.43,0.00020815,2]
[378341761,1754833753677,-460.0,0.00020815,2]
[378341762,1754833753702,-714.06,0.00020815,2]
[378341763,1754833753725,-460.0,0.00020816,2]
[378341764,1754833753750,-460.0,0.00020816,2]
[378341765,1754833753775,-699.13,0.00020816,2]
[378341766,1754833753800,-460.0,0.00020816,2]
[378341767,1754833753827,-1026.64,0.00020816,2]
[378341768,1754833753852,-793.61,0.00020816,2]
[378341769,1754833753876,-645.11,0.00020816,2]
[378341770,1754833753905,-460.0,0.00020816,2]
[378341771,1754833753930,-673.21,0.00020816,2]
[378341772,1754833753953,-460.0,0.00020816,2]
[378341773,1754833753975,-462.39085824,0.00020817,2]
[378341774,1754833753999,-460.0,0.00020817,2]
[378341775,1754833754027,-460.0,0.00020817,2]
[378341776,1754833754059,-460.0,0.00020817,2]
[378341777,1754833754085,-460.0,0.00020817,2]
[378341778,1754833754108,-460.0,0.00020817,2]
[378341779,1754833754130,-460.0,0.00020817,2]
[378341780,1754833754159,-460.0,0.00020817,2]
[378341781,1754833754183,-460.0,0.00020817,2]
[378341782,1754833754209,-460.0,0.00020817,2]
[378341783,1754833754237,-460.0,0.00020817,2]
[378341784,1754833754261,-460.0,0.00020817,2]
[378341785,1754833754287,-882.98,0.00020817,2]
[378341786,1754833754310,-460.0,0.00020817,2]
[378341787,1754833754335,-621.77,0.00020817,2]
[378341788,1754833754358,-477.63401747,0.00020817,2]
[378341789,1754833754379,-460.0,0.00020818,2]
[378341790,1754833754404,-490.86,0.00020818,2]
[378341791,1754833754428,-600.89,0.00020818,2]
[378341792,1754833754453,-591.72,0.00020818,2]
[378341793,1754833754478,-550.77,0.00020818,2]
[378341794,1754833754502,-460.0,0.00020819,2]
[378341795,1754833754525,-19306.24706298,0.00020985,3]
[378341796,1754833754553,-200.0,0.00020992,15]
[378341797,1754833754581,-300.0,0.00020992,15]
[378341798,1754833754606,-600.89,0.00021085,2]
[378341799,1754833754632,-460.0,0.00021089,2]
[378341800,1754833754658,-460.0,0.00021089,2]
[378341801,1754833754683,-831.43,0.00021089,2]
[378341802,1754833754706,-460.0,0.00021089,2]
[378341803,1754833754731,-714.06,0.00021089,2]
[378341804,1754833754755,-460.0,0.0002109,2]
[378341805,1754833754779,-460.0,0.0002109,2]
[378341806,1754833754804,-699.13,0.0002109,2]
[378341807,1754833754832,-460.0,0.0002109,2]
[378341808,1754833754859,-1026.64,0.0002109,2]
[378341809,1754833754885,-793.61,0.0002109,2]
[378341810,1754833754908,-186.31852862,0.0002109,2]
[378341811,1754833758111,1658.17153365,0.000189,2]
[378341812,1754833765914,2214.44580815,0.000199,2]
[378341813,1754833765943,2700.6970438,0.000199,2]
[378341814,1754833793045,1002.6616153,0.00019814,2]
[378341815,1754833806527,1000.289089,0.00019594,2]
[378341816,1754833809262,209.7338993,0.00019395,2]
[378341858,1754833832388,-663.46,0.00019989,2]
[378341860,1754833832398,-460.0,0.00019993,2]
[378341861,1754833832407,-460.0,0.00019993,2]
[378341862,1754833832417,-460.0,0.00019993,2]
[378341863,1754833832427,-460.0,0.00019994,2]
[378341864,1754833832436,-460.0,0.00019994,2]
[378341865,1754833832447,-126.109997,0.00019994,2]
[378341866,1754833832466,-502.160003,0.00019994,2]
[378341867,1754833832475,-460.0,0.00019994,2]
[378341868,1754833832485,-460.0,0.00019994,2]
[378341869,1754833832494,-464.59537449,0.00019995,2]
[378341871,1754833832504,-460.0,0.00019995,2]
[378341873,1754833832513,-460.0,0.00019995,2]
[378341875,1754833832522,-43.84724444,0.00019995,2]
[378341936,1754833838069,-1846.71275556,0.00019995,2]
[378341938,1754833838078,-454.39652137,0.00019995,2]
[378341940,1754833838088,-460.0,0.00019995,2]
[378341942,1754833838097,-556.33,0.00019995,2]
[378341943,1754833838107,-460.0,0.00019996,2]
[378341945,1754833838121,-460.0,0.00019996,2]
[378341947,1754833838130,-460.0,0.00019996,2]
[378341949,1754833838140,-663.46,0.00020263,2]
[378341951,1754833838149,-460.0,0.00020267,2]
[378341953,1754833838158,-460.0,0.00020267,2]
[378341954,1754833838167,-460.0,0.00020268,2]
[378341956,1754833838175,-460.0,0.00020268,2]
[378341958,1754833838184,-628.27,0.00020268,2]
[378341960,1754833838193,-460.0,0.00020268,2]
[378341962,1754833838202,-460.0,0.00020268,2]
[378341963,1754833838211,-460.0,0.00020269,2]
[378341965,1754833838220,-1890.56,0.00020269,2]
[378341967,1754833838229,-556.33,0.00020269,2]
[378341969,1754833838238,-460.0,0.0002027,2]
[378341970,1754833838247,-460.0,0.0002027,2]
[378341972,1754833838256,-460.0,0.0002027,2]
[378341974,1754833838265,-663.46,0.00020537,2]
[378341976,1754833838276,-460.0,0.00020541,2]
[378341978,1754833838289,-460.0,0.00020541,2]
[378341980,1754833838298,-317.29150587,0.00020542,2]
[378341981,1754833838307,-628.27,0.00020542,2]
[378341983,1754833838316,-460.0,0.00020542,2]
[378341985,1754833838325,-460.0,0.00020542,2]
[378341987,1754833838335,-1890.56,0.00020543,2]
[378341989,1754833838345,-556.33,0.00020543,2]
[378341991,1754833838354,-460.0,0.00020544,2]
[378341993,1754833838364,-460.0,0.00020544,2]
[378341994,1754833838373,-460.0,0.00020544,2]
[378341996,1754833838382,-663.46,0.00020811,2]
[378341998,1754833838391,-460.0,0.00020815,2]
[378342000,1754833838401,-460.0,0.00020815,2]
[378342001,1754833838411,-628.27,0.00020816,2]
[378342003,1754833838420,-460.0,0.00020816,2]
[378342005,1754833838429,-283.9723058,0.00020816,2]
[378342007,1754833838438,-1890.56,0.00020817,2]
[378342009,1754833838449,-556.33,0.00020817,2]
[378342011,1754833838458,-460.0,0.00020818,2]
[378342012,1754833838467,-460.0,0.00020818,2]
[378342014,1754833838476,-460.0,0.00020818,2]
[378342016,1754833838485,-12668.57659669,0.00020985,3]
[378342018,1754833838494,-663.46,0.00021085,2]
[378342020,1754833838504,-460.0,0.00021089,2]
[378342022,1754833838513,-460.0,0.00021089,2]
[378342024,1754833838523,-458.79147138,0.0002109,2]
[378342026,1754833838532,-460.0,0.0002109,2]
[378342028,1754833838542,-673.21,0.0002109,2]
[378342030,1754833838552,-460.0,0.0002109,2]
[378342032,1754833838561,-628.27,0.0002109,2]
[378342034,1754833838571,-460.0,0.0002109,2]
[378342036,1754833838581,-460.0,0.00021091,2]
[378342038,1754833838590,-460.0,0.00021091,2]
[378342040,1754833838599,-460.0,0.00021091,2]
[378342042,1754833838610,-460.0,0.00021091,2]
[378342044,1754833838619,-460.0,0.00021091,2]
[378342046,1754833838629,-460.0,0.00021091,2]
[378342048,1754833838639,-1890.56,0.00021091,2]
[378342050,1754833838649,-490.86,0.00021092,2]
[378342052,1754833838658,-591.72,0.00021092,2]
[378342054,1754833838667,-550.77,0.00021092,2]
[378342056,1754833838677,-460.0,0.00021092,2]
[378342058,1754833838686,-460.0,0.00021092,2]
[378342060,1754833838696,-460.0,0.00021092,2]
[378342062,1754833838705,-151.0,0.000212,4]
[378342064,1754833838715,-884.16705645,0.00021264,2]
[378342065,1754833838724,-171.64,0.00021298,2]
[378342066,1754833838733,-663.46,0.00021359,2]
[378342067,1754833838742,-460.0,0.00021363,2]
[378342068,1754833838751,-831.43,0.00021363,2]
[378342069,1754833838760,-460.0,0.00021363,2]
[378342070,1754833838770,-714.06,0.00021363,2]
[378342071,1754833838779,-460.0,0.00021363,2]
[378342072,1754833838883,-460.0,0.00021363,2]
[378342073,1754833838926,-699.13,0.00021364,2]
[378342074,1754833838940,-460.0,0.00021364,2]
[378342075,1754833838949,-645.11,0.00021364,2]
[378342076,1754833838959,-460.0,0.00021364,2]
[378342077,1754833838967,-673.21,0.00021364,2]
[378342078,1754833838976,-628.27,0.00021364,2]
[378342079,1754833838985,-460.0,0.00021364,2]
[378342080,1754833838994,-460.0,0.00021365,2]
[378342081,1754833839003,-460.0,0.00021365,2]
[378342082,1754833839012,-460.0,0.00021365,2]
[378342083,1754833839021,-460.0,0.00021365,2]
[378342084,1754833839030,-460.0,0.00021365,2]
[378342085,1754833839040,-460.0,0.00021365,2]
[378342086,1754833839049,-1890.56,0.00021365,2]
[378342087,1754833839058,-490.86,0.00021366,2]
[378342088,1754833839067,-591.72,0.00021366,2]
[378342089,1754833839076,-550.77,0.00021366,2]
[378342090,1754833839085,-460.0,0.00021366,2]
[378342091,1754833839094,-460.0,0.00021366,2]
[378342092,1754833839105,-460.0,0.00021366,2]
[378342093,1754833839114,-160.0,0.00021489,2]
[378342094,1754833839123,-1000.0,0.00021545,2]
[378342095,1754833839132,-160.0,0.00021558,2]
[378342096,1754833839143,-461.62346162,0.00021558,2]
[378342097,1754833839152,-160.0,0.00021558,2]
[378342098,1754833839161,-215.44987349,0.00021558,2]
[378342099,1754833839170,-312.16666667,0.00021558,2]
[378342100,1754833839179,-160.0,0.00021558,2]
[378342101,1754833839197,-160.0,0.00021558,2]
[378342102,1754833839215,-843.0869304,0.00021558,2]
[378342103,1754833839224,-160.0,0.00021558,2]
[378342104,1754833839234,-216.64838636,0.00021558,2]
[378342105,1754833839243,-527.86640923,0.00021558,2]
[378342106,1754833839252,-231.96268195,0.00021558,2]
[378342107,1754833839261,-160.0,0.00021558,2]
[378342108,1754833839270,-12668.57659669,0.00021558,2]
[378342109,1754833839283,-500.0,0.00021565,2]
[378342110,1754833839293,-500.0,0.00021565,2]
[378342111,1754833839302,-663.46,0.00021633,2]
[378342112,1754833839311,-528.8,0.00021635,10]
[378342113,1754833839322,-460.0,0.00021637,2]
[378342114,1754833839332,-831.43,0.00021637,2]
[378342115,1754833839341,-460.0,0.00021637,2]
[378342116,1754833839351,-714.06,0.00021637,2]
[378342117,1754833839362,-460.0,0.00021637,2]
[378342118,1754833839375,-460.0,0.00021637,2]
[378342119,1754833839384,-699.13,0.00021638,2]
[378342120,1754833839394,-460.0,0.00021638,2]
[378342121,1754833839403,-645.11,0.00021638,2]
[378342122,1754833839412,-460.0,0.00021638,2]
[378342123,1754833839422,-673.21,0.00021638,2]
[378342124,1754833839431,-628.27,0.00021638,2]
[378342125,1754833839440,-460.0,0.00021638,2]
[378342126,1754833839450,-564.78050923,0.00021639,2]
[378342127,1754833839460,-460.0,0.00021639,2]
[378342128,1754833839469,-460.0,0.00021639,2]
[378342129,1754833839478,-460.0,0.00021639,2]
[378342131,1754833839488,-460.0,0.00021639,2]
[378342132,1754833839497,-460.0,0.00021639,2]
[378342133,1754833839507,-1890.56,0.00021639,2]
[378342136,1754833839516,-490.86,0.0002164,2]
[378342137,1754833839526,-591.72,0.0002164,2]
[378342138,1754833839535,-550.77,0.0002164,2]
[378342140,1754833839545,-460.0,0.0002164,2]
[378342141,1754833839554,-460.0,0.0002164,2]
[378342143,1754833839564,-460.0,0.0002164,2]
[378342145,1754833839573,-151.0,0.00021645,2]
[378342147,1754833839583,-500.0,0.00021645,2]
[378342149,1754833839592,-500.0,0.00021645,2]
[378342151,1754833839601,-151.0,0.00021645,2]
[378342153,1754833839611,-500.0,0.00021645,2]
[378342155,1754833839621,-151.0,0.00021645,2]
[378342157,1754833839631,-500.0,0.00021645,2]
[378342159,1754833839640,-151.0,0.00021645,2]
[378342161,1754833839650,-500.0,0.00021645,2]
[378342163,1754833839659,-500.0,0.00021645,2]
[378342165,1754833839669,-151.0,0.00021645,2]
[378342167,1754833839679,-500.0,0.00021645,2]
[378342169,1754833839688,-151.0,0.00021645,2]
[378342171,1754833839698,-500.0,0.00021645,2]
[378342173,1754833839708,-151.0,0.00021645,2]
[378342175,1754833839717,-500.0,0.00021645,2]
[378342177,1754833839727,-151.0,0.00021645,2]
[378342179,1754833839736,-500.0,0.00021645,2]
[378342181,1754833839745,-151.0,0.00021645,2]
[378342183,1754833839755,-500.0,0.00021645,2]
[378342185,1754833839764,-151.0,0.00021645,2]
[378342187,1754833839774,-18502.69577858,0.00021645,2]
[378342189,1754833839783,-151.0,0.00021645,2]
[378342192,1754833839793,-151.0,0.00021645,2]
[378342193,1754833839802,-151.0,0.00021645,2]
[378342195,1754833839812,-151.0,0.00021645,2]
[378342197,1754833839821,-500.0,0.00021645,2]
[378342200,1754833839831,-500.0,0.00021645,2]
[378342202,1754833839841,-151.0,0.00021645,2]
[378342204,1754833839851,-500.0,0.00021645,2]
[378342206,1754833839860,-151.0,0.00021645,2]
[378342207,1754833839869,-500.0,0.00021645,2]
[378342209,1754833839881,-151.0,0.00021645,2]
[378342211,1754833839891,-151.0,0.00021645,2]
[378342214,1754833839901,-572.16357621,0.00021645,2]
[378342215,1754833839910,-4915.14285191,0.00021655,2]
[378342217,1754833839920,-556.82018342,0.00021673,2]
[378342219,1754833839930,-151.0,0.000217,4]
[378342221,1754833839940,-663.46,0.00021907,2]
[378342223,1754833839949,-460.0,0.00021911,2]
[378342225,1754833839959,-831.43,0.00021911,2]
[378342227,1754833839968,-460.0,0.00021911,2]
[378342229,1754833839978,-714.06,0.00021911,2]
[378342231,1754833839987,-182.97433409,0.00021911,2]
[378342233,1754833839996,-460.0,0.00021911,2]
[378342235,1754833840006,-699.13,0.00021912,2]
[378342237,1754833840015,-460.0,0.00021912,2]
[378342239,1754833840024,-645.11,0.00021912,2]
[378342241,1754833840033,-460.0,0.00021912,2]
[378342243,1754833840043,-673.21,0.00021912,2]
[378342245,1754833840052,-460.0,0.00021912,2]
[378342247,1754833840062,-628.27,0.00021912,2]
[378342249,1754833840071,-460.0,0.00021913,2]
[378342251,1754833840080,-460.0,0.00021913,2]
[378342253,1754833840090,-460.0,0.00021913,2]
[378342255,1754833840099,-478.57246964,0.00021913,2]
[378342257,1754833840111,-460.0,0.00021913,2]
[378342259,1754833840122,-1890.56,0.00021913,2]
[378342261,1754833840131,-490.86,0.00021914,2]
[378342263,1754833840141,-591.72,0.00021914,2]
[378342265,1754833840150,-550.77,0.00021914,2]
[378342267,1754833840159,-487.99184102,0.00021914,2]
[378342269,1754833840168,-460.0,0.00021914,2]
[378342271,1754833840178,-460.0,0.00021914,2]
[378342273,1754833840187,-500.0,0.00021917,2]
[378342275,1754833840196,-500.0,0.00021917,2]
[378342277,1754833840206,-500.0,0.00021917,2]
[378342279,1754833840215,-500.0,0.00021917,2]
[378342281,1754833840224,-588.32363811,0.00021917,2]
[378342283,1754833840234,-5142.33,0.00021917,2]
[378342285,1754833840243,-500.0,0.00021919,2]
[378342287,1754833840253,-1491.99,0.00022,2]
[378342289,1754833840262,-162.68,0.00022,2]
[378342291,1754833840272,-167.0,0.00022,2]
[378342293,1754833840285,-500.0,0.0002208,2]
[378342295,1754833840298,-500.0,0.00022089,2]
[378342297,1754833840308,-500.0,0.00022089,2]
[378342299,1754833840318,-151.0,0.000221,6]
[378342301,1754833840327,-884.16705645,0.0002215,2]
[378342303,1754833840336,-663.46,0.00022181,2]
[378342305,1754833840345,-460.0,0.00022185,2]
[378342307,1754833840355,-831.43,0.00022185,2]
[378342309,1754833840365,-460.0,0.00022185,2]
[378342311,1754833840374,-714.06,0.00022185,2]
[378342313,1754833840383,-460.0,0.00022185,2]
[378342315,1754833840393,-699.13,0.00022186,2]
[378342317,1754833840402,-460.0,0.00022186,2]
[378342319,1754833840410,-645.11,0.00022186,2]
[378342321,1754833840419,-460.0,0.00022186,2]
[378342323,1754833840429,-673.21,0.00022186,2]
[378342325,1754833840438,-460.0,0.00022186,2]
[378342327,1754833840448,-628.27,0.00022186,2]
[378342329,1754833840458,-460.0,0.00022187,2]
[378342331,1754833840469,-460.0,0.00022187,2]
[378342333,1754833840485,-460.0,0.00022187,2]
[378342335,1754833840495,-1890.56,0.00022187,2]
[378342337,1754833840504,-490.86,0.00022188,2]
[378342339,1754833840514,-591.72,0.00022188,2]
[378342341,1754833840524,-550.77,0.00022188,2]
[378342343,1754833840533,-460.0,0.00022188,2]
[378342345,1754833840542,-460.0,0.00022188,2]
[378342347,1754833840552,-167.0,0.00022192,7]
[378342349,1754833840562,-316.56,0.00022451,3]
[378342351,1754833840572,-663.46,0.00022455,2]
[378342353,1754833840581,-460.0,0.00022459,2]
[378342355,1754833840591,-831.43,0.00022459,2]
[378342357,1754833840600,-460.0,0.00022459,2]
[378342359,1754833840609,-714.06,0.00022459,2]
[378342361,1754833840618,-460.0,0.00022459,2]
[378342363,1754833840627,-699.13,0.0002246,2]
[378342365,1754833840636,-460.0,0.0002246,2]
[378342367,1754833840652,-645.11,0.0002246,2]
[378342369,1754833840670,-460.0,0.0002246,2]
[378342371,1754833840679,-673.21,0.0002246,2]
[378342373,1754833840691,-460.0,0.0002246,2]
[378342375,1754833840702,-628.27,0.0002246,2]
[378342377,1754833840712,-460.0,0.00022461,2]
[378342379,1754833840722,-460.0,0.00022461,2]
[378342381,1754833840731,-460.0,0.00022461,2]
[378342383,1754833840741,-1890.56,0.00022461,2]
[378342385,1754833840751,-490.86,0.00022462,2]
[378342387,1754833840760,-591.72,0.00022462,2]
[378342389,1754833840772,-550.77,0.00022462,2]
[378342391,1754833840781,-460.0,0.00022462,2]
[378342393,1754833840790,-460.0,0.00022462,2]
[378342395,1754833840800,-151.0,0.00022464,2]
[378342397,1754833840809,-151.0,0.00022464,2]
[378342399,1754833840818,-151.0,0.00022464,2]
[378342401,1754833840828,-151.0,0.00022464,2]
[378342403,1754833840837,-151.0,0.00022464,2]
[378342405,1754833840846,-396.54015367,0.00022575,2]
[378342407,1754833840856,-402.78532371,0.00022575,2]
[378342409,1754833840865,-151.0,0.000226,5]
[378342411,1754833840875,-151.0,0.000226,7]
[378342413,1754833840884,-153.0,0.00022711,2]
[378342415,1754833840895,-153.0,0.00022711,2]
[378342417,1754833840904,-663.46,0.00022729,2]
[378342419,1754833840914,-460.0,0.00022733,2]
[378342421,1754833840922,-831.43,0.00022733,2]
[378342423,1754833840932,-714.06,0.00022733,2]
[378342425,1754833840941,-460.0,0.00022733,2]
[378342427,1754833840950,-699.13,0.00022734,2]
[378342429,1754833840959,-460.0,0.00022734,2]
[378342431,1754833840969,-645.11,0.00022734,2]
[378342433,1754833840978,-460.0,0.00022734,2]
[378342435,1754833840987,-673.21,0.00022734,2]
[378342436,1754833840996,-460.0,0.00022734,2]
[378342439,1754833841007,-628.27,0.00022734,2]
[378342441,1754833841028,-460.0,0.00022735,2]
[378342443,1754833841040,-460.0,0.00022735,2]
[378342445,1754833841049,-266.88,0.00022735,2]
[378342447,1754833841058,-1890.56,0.00022735,2]
[378342449,1754833841067,-490.86,0.00022736,2]
[378342451,1754833841077,-591.72,0.00022736,2]
[378342453,1754833841086,-550.77,0.00022736,2]
[378342455,1754833841095,-460.0,0.00022736,2]
[378342457,1754833841104,-460.0,0.00022736,2]
[378342459,1754833841114,-245.0,0.00022738,2]
[378342460,1754833841124,-245.40955427,0.00022738,2]
[378342463,1754833841133,-151.0,0.00022738,2]
[378342465,1754833841144,-151.0,0.00023,6]
[378342466,1754833841153,-231.96268195,0.00023,3]
[378342468,1754833841163,-160.0,0.00023,3]
[378342470,1754833841171,-160.0,0.00023,3]
[378342472,1754833841181,-216.64838636,0.00023,3]
[378342474,1754833841190,-160.0,0.00023,3]
[378342477,1754833841199,-160.0,0.00023,2]
[378342478,1754833841209,-663.46,0.00023003,2]
[378342481,1754833841218,-460.0,0.00023007,2]
[378342483,1754833841227,-831.43,0.00023007,2]
[378342485,1754833841236,-714.06,0.00023007,2]
[378342487,1754833841246,-460.0,0.00023007,2]
[378342488,1754833841256,-699.13,0.00023008,2]
[378342490,1754833841265,-460.0,0.00023008,2]
[378342492,1754833841275,-645.11,0.00023008,2]
[378342494,1754833841287,-460.0,0.00023008,2]
[378342496,1754833841296,-673.21,0.00023008,2]
[378342498,1754833841305,-460.0,0.00023008,2]
[378342500,1754833841314,-628.27,0.00023008,2]
[378342503,1754833841324,-460.0,0.00023009,2]
[378342505,1754833841334,-460.0,0.00023009,2]
[378342506,1754833841343,-1890.56,0.00023009,2]
[378342508,1754833841352,-490.86,0.0002301,2]
[378342510,1754833841364,-591.72,0.0002301,2]
[378342512,1754833841374,-550.77,0.0002301,2]
[378342525,1754833841480,-460.0,0.0002301,2]
[378342527,1754833841490,-460.0,0.0002301,2]
[378342529,1754833841500,-198.0,0.00023012,2]
[378342531,1754833841509,-151.0,0.00023012,2]
[378342533,1754833841518,-151.0,0.00023012,2]
[378342535,1754833841527,-151.0,0.00023012,2]
[378342537,1754833841536,-151.0,0.00023012,2]
[378342539,1754833841546,-245.95502038,0.00023012,2]
[378342541,1754833841555,-151.0,0.00023012,2]
[378342543,1754833841564,-151.0,0.00023012,2]
[378342545,1754833841574,-151.0,0.00023014,2]
[378342547,1754833841584,-19187.29552238,0.00023014,2]
[378342549,1754833841595,-167.0,0.00023014,7]
[378342552,1754833841605,-884.16705645,0.00023036,2]
[378342553,1754833841616,-200.0,0.00023044,15]
[378342556,1754833841626,-200.0,0.00023044,15]
[378342558,1754833841637,-300.0,0.00023044,15]
[378342559,1754833841654,-160.0,0.00023076,2]
[378342561,1754833841665,-151.0,0.000231,10]
[378342563,1754833841675,-500.0,0.00023138,2]
[378342565,1754833841684,-372.91866161,0.00023138,2]
[378342567,1754833841695,-500.0,0.00023138,2]
[378342569,1754833841705,-500.21872809,0.00023138,2]
[378342571,1754833841716,-500.0,0.00023138,2]
[378342573,1754833841726,-500.0,0.00023138,2]
[378342575,1754833841737,-1491.99,0.00023185,2]
[378342577,1754833841748,-500.0,0.00023224,2]
[378342579,1754833841758,-500.0,0.00023224,2]
[378342581,1754833841768,-500.0,0.00023224,2]
[378342583,1754833841784,-663.46,0.00023277,2]
[378342585,1754833841794,-460.0,0.00023281,2]
[378342587,1754833841804,-831.43,0.00023281,2]
[378342589,1754833841813,-714.06,0.00023281,2]
[378342591,1754833841823,-460.0,0.00023281,2]
[378342593,1754833841832,-699.13,0.00023282,2]
[378342595,1754833841841,-460.0,0.00023282,2]
[378342597,1754833841850,-645.11,0.00023282,2]
[378342599,1754833841859,-460.0,0.00023282,2]
[378342601,1754833841868,-673.21,0.00023282,2]
[378342603,1754833841878,-183.0603708,0.00023282,2]
[378342605,1754833841887,-628.27,0.00023282,2]
[378342607,1754833841899,-460.0,0.00023283,2]
[378342609,1754833841908,-294.5142553,0.00023283,2]
[378342611,1754833841918,-1890.56,0.00023283,2]
[378342612,1754833841927,-490.86,0.00023284,2]
[378342614,1754833841936,-591.72,0.00023284,2]
[378342616,1754833841945,-550.77,0.00023284,2]
[378342618,1754833841955,-460.0,0.00023284,2]
[378342620,1754833841964,-460.0,0.00023284,2]
[378342622,1754833841974,-151.0,0.00023286,2]
[378342624,1754833841983,-151.0,0.00023286,2]
[378342626,1754833841992,-151.0,0.00023286,2]
[378342628,1754833842001,-4915.14285191,0.00023409,2]
[378342630,1754833842011,-382.0,0.00023422,2]
[378342632,1754833842020,-151.0,0.000235,9]
[378342634,1754833842030,-151.0,0.000235,5]
[378342636,1754833842040,-663.46,0.00023551,2]
[378342638,1754833842049,-460.0,0.00023555,2]
[378342640,1754833842059,-831.43,0.00023555,2]
[378342642,1754833842068,-714.06,0.00023555,2]
[378342644,1754833842077,-699.13,0.00023556,2]
[378342646,1754833842089,-460.0,0.00023556,2]
[378342648,1754833842098,-645.11,0.00023556,2]
[378342650,1754833842107,-460.0,0.00023556,2]
[378342652,1754833842117,-673.21,0.00023556,2]
[378342654,1754833842126,-628.27,0.00023556,2]
[378342656,1754833842135,-460.0,0.00023557,2]
[378342658,1754833842146,-1890.56,0.00023557,2]
[378342660,1754833842155,-171.64,0.00023557,2]
[378342662,1754833842164,-490.86,0.00023558,2]
[378342664,1754833842173,-591.72,0.00023558,2]
[378342666,1754833842183,-550.77,0.00023558,2]
[378342668,1754833842192,-460.0,0.00023558,2]
[378342670,1754833842201,-460.0,0.00023558,2]
[378342672,1754833842211,-198.0,0.0002356,2]
[378342674,1754833842220,-198.0,0.0002356,2]
[378342676,1754833842229,-245.0,0.0002356,2]
[378342678,1754833842238,-260.0,0.00023624,2]
[378342680,1754833842248,-512.33653393,0.00023686,2]
[378342682,1754833842257,-995.62790489,0.00023686,2]
[378342684,1754833842267,-1586.16061469,0.00023693,2]
[378342686,1754833842277,-500.0,0.00023772,2]
[378342688,1754833842288,-1000.0,0.00023772,2]
[378342690,1754833842297,-500.0,0.00023772,2]
[378342692,1754833842306,-663.46,0.00023825,2]
[378342694,1754833842315,-460.0,0.00023829,2]
[378342696,1754833842325,-831.43,0.00023829,2]
[378342698,1754833842335,-714.06,0.00023829,2]
[378342700,1754833842344,-699.13,0.0002383,2]
[378342702,1754833842354,-460.0,0.0002383,2]
[378342704,1754833842364,-645.11,0.0002383,2]
[378342706,1754833842374,-460.0,0.0002383,2]
[378342708,1754833842383,-673.21,0.0002383,2]
[378342710,1754833842394,-628.27,0.0002383,2]
[378342712,1754833842403,-347.04771239,0.00023831,2]
[378342714,1754833842413,-1890.56,0.00023831,2]
[378342716,1754833842423,-490.86,0.00023832,2]
[378342718,1754833842432,-591.72,0.00023832,2]
[378342720,1754833842442,-550.77,0.00023832,2]
[378342722,1754833842451,-460.0,0.00023832,2]